fUSD/lending_fUSD_20250515
["ID","MTS","AMOUNT","RATE_DAILY","PERIOD"]
[361148167,1747306241299,-400.0,0.00011531,2]
[361148169,1747306241309,-710.82,0.00011531,2]
[361148171,1747306241322,-400.0,0.00011531,2]
[361148174,1747306241335,-400.0,0.00011531,2]
[361148176,1747306241346,-400.0,0.00011531,2]
[361148178,1747306241356,-400.0,0.00011531,2]
[361148180,1747306241367,-400.0,0.00011531,2]
[361148182,1747306241377,-509.16,0.00011531,2]
[361148184,1747306241388,-400.0,0.00011531,2]
[361148187,1747306241401,-400.0,0.00011531,2]
[361148189,1747306241415,-2117.73,0.00011531,2]
[361148191,1747306241427,-400.0,0.00011531,2]
[361148193,1747306241437,-404.12041513,0.00011531,2]
[361148196,1747306241448,-400.0,0.00011531,2]
[361148198,1747306241461,-400.0,0.00011531,2]
[361148200,1747306241472,-373.97882899,0.00011531,2]
[361148202,1747306241483,-405.58632228,0.00011531,2]
[361148204,1747306241493,-400.0,0.00011531,2]
[361148206,1747306241506,-158.99891201,0.00011531,2]
[361148209,1747306241523,-852.33,0.00011531,2]
[361148211,1747306241535,-400.0,0.00011531,2]
[361148214,1747306241547,-400.0,0.00011531,2]
[361148216,1747306241559,-1679.22,0.00011531,2]
[361148218,1747306241571,-400.0,0.00011531,2]
[361148220,1747306241582,-400.0,0.00011531,2]
[361148222,1747306241594,-400.0,0.00011531,2]
[361148225,1747306241605,-400.0,0.00011531,2]
[361148227,1747306241617,-400.0,0.00011531,2]
[361148229,1747306241629,-433.790526,0.00011531,2]
[361148231,1747306241640,-400.0,0.00011531,2]
[361148234,1747306241651,-423.2250079,0.00011531,2]
[361148236,1747306241663,-400.0,0.00011531,2]
[361148238,1747306241675,-400.0,0.00011531,2]
[361148240,1747306241687,-400.0,0.00011531,2]
[361148242,1747306241698,-484.99,0.00011531,2]
[361148245,1747306241710,-400.0,0.00011531,2]
[361148247,1747306241722,-797.85,0.00011531,2]
[361148249,1747306241734,-414.26,0.00011531,2]
[361148251,1747306241745,-400.0,0.00011531,2]
[361148254,1747306241757,-400.0,0.00011531,2]
[361148256,1747306241769,-537.94,0.00011531,2]
[361148258,1747306241782,-400.0,0.00011531,2]
[361148260,1747306241794,-400.0,0.00011531,2]
[361148262,1747306241805,-400.0,0.00011531,2]
[361148264,1747306241816,-400.0,0.00011531,2]
[361148265,1747306241828,-1215.08,0.00011531,2]
[361148267,1747306241840,-241.6046355,0.00011532,2]
[361148269,1747306241852,-156.2016974,0.00011532,2]
[361148272,1747306241863,-400.0,0.00011532,2]
[361148274,1747306241877,-400.0,0.00011532,2]
[361148276,1747306241888,-400.0,0.00011532,2]
[361148278,1747306241899,-400.0,0.00011532,2]
[361148279,1747306241910,-400.0,0.00011532,2]
[361148281,1747306241922,-400.0,0.00011532,2]
[361148283,1747306241933,-400.0,0.00011532,2]
[361148285,1747306241945,-400.0,0.00011532,2]
[361148287,1747306241956,-400.0,0.00011532,2]
[361148289,1747306241967,-400.0,0.00011532,2]
[361148291,1747306241978,-400.0,0.00011532,2]
[361148293,1747306241989,-400.0,0.00011532,2]
[361148295,1747306242000,-194.91,0.00011532,2]
[361148297,1747306242011,-510.84084995,0.00011532,2]
[361148298,1747306242023,-400.0,0.00011532,2]
[361148299,1747306242036,-400.0,0.00011532,2]
[361148300,1747306242047,-216.24,0.00011532,2]
[361148301,1747306242059,-400.0,0.00011532,2]
[361148302,1747306242070,-525.35550422,0.00011532,2]
[361148303,1747306242082,-400.0,0.00011532,2]
[361148304,1747306242093,-400.0,0.00011532,2]
[361148305,1747306242104,-400.0,0.00011532,2]
[361148306,1747306242115,-400.0,0.00011532,2]
[361148307,1747306242126,-400.0,0.00011532,2]
[361148308,1747306242137,-400.0,0.00011532,2]
[361148309,1747306242148,-350.0,0.00011532,2]
[361148310,1747306242159,-337.42573436,0.00011532,2]
[361148311,1747306242170,-400.0,0.00011532,2]
[361148313,1747306242181,-309.74326857,0.00011532,2]
[361148315,1747306242193,-340.72421823,0.00011532,2]
[361148318,1747306242205,-400.0,0.00011532,2]
[361148319,1747306242216,-400.0,0.00011532,2]
[361148321,1747306242227,-400.0,0.00011532,2]
[361148323,1747306242239,-250.59486508,0.00011532,2]
[361148325,1747306242250,-400.0,0.00011532,2]
[361148327,1747306242261,-400.0,0.00011532,2]
[361148329,1747306242272,-182.15358033,0.00011532,2]
[361148331,1747306242285,-500.0,0.00011532,2]
[361148333,1747306242296,-400.0,0.00011532,2]
[361148335,1747306242307,-400.0,0.00011532,2]
[361148337,1747306242318,-193.86568212,0.00011532,2]
[361148339,1747306242329,-528.11733418,0.00011532,2]
[361148341,1747306242340,-407.00863942,0.00011532,2]
[361148343,1747306242351,-200.0,0.00011532,2]
[361148345,1747306242362,-400.0,0.00011532,2]
[361148347,1747306242374,-400.0,0.00011532,2]
[361148349,1747306242386,-400.0,0.00011532,2]
[361148352,1747306242398,-400.0,0.00011532,2]
[361148353,1747306242409,-400.0,0.00011532,2]
[361148356,1747306242421,-400.0,0.00011532,2]
[361148358,1747306242432,-400.0,0.00011532,2]
[361148360,1747306242443,-400.0,0.00011532,2]
[361148362,1747306242455,-408.46241835,0.00011532,2]
[361148364,1747306242469,-400.0,0.00011532,2]
[361148366,1747306242479,-400.0,0.00011532,2]
[361148368,1747306242490,-506.33470363,0.00011532,2]
[361148370,1747306242502,-400.0,0.00011532,2]
[361148372,1747306242513,-405.82830868,0.00011532,2]
[361148374,1747306242526,-404.88743732,0.00011532,2]
[361148376,1747306242540,-400.0,0.00011532,2]
[361148378,1747306242551,-467.13957475,0.00011532,2]
[361148380,1747306242562,-539.62,0.00011532,2]
[361148382,1747306242574,-407.98637174,0.00011532,2]
[361148384,1747306242586,-400.0,0.00011532,2]
[361148385,1747306242598,-408.76828686,0.00011532,2]
[361148386,1747306242609,-400.0,0.00011532,2]
[361148387,1747306242621,-702.0,0.00011532,2]
[361148388,1747306242632,-436.51,0.00011532,2]
[361148389,1747306242644,-400.0,0.00011532,2]
[361148390,1747306242656,-180.17913654,0.00011532,2]
[361148391,1747306242667,-400.0,0.00011532,2]
[361148392,1747306242678,-400.0,0.00011532,2]
[361148393,1747306242690,-400.0,0.00011532,2]
[361148394,1747306242701,-400.0,0.00011532,2]
[361148395,1747306242713,-400.0,0.00011532,2]
[361148396,1747306242724,-407.45757253,0.00011532,2]
[361148397,1747306242735,-400.0,0.00011532,2]
[361148398,1747306242746,-400.0,0.00011532,2]
[361148399,1747306242758,-402.96302175,0.00011532,2]
[361148400,1747306242769,-400.0,0.00011532,2]
[361148401,1747306242782,-198.62546882,0.00011532,2]
[361148402,1747306242793,-400.0,0.00011532,2]
[361148403,1747306242804,-644.59,0.00011532,2]
[361148404,1747306242816,-400.0,0.00011532,2]
[361148405,1747306242826,-1813.08,0.00011532,2]
[361148406,1747306242838,-349.97670456,0.00011532,2]
[361148425,1747306243364,-297.7606,0.00011432,2]
[361148426,1747306243375,-261.13290208,0.00011531,2]
[361148427,1747306243408,-138.86709792,0.00011531,2]
[361148428,1747306243419,-50.02329544,0.00011532,2]
[361148429,1747306243430,-400.0,0.00011532,2]
[361148430,1747306243441,-400.0,0.00011532,2]
[361148439,1747306243850,-400.0,0.00011532,2]
[361148440,1747306243871,-400.0,0.00011532,2]
[361148441,1747306243881,-400.0,0.00011532,2]
[361148442,1747306243890,-433.90950005,0.00011532,2]
[361148443,1747306243899,-400.0,0.00011532,2]
[361148444,1747306243908,-400.0,0.00011532,2]
[361148445,1747306243917,-191.45761091,0.00011532,2]
[361148446,1747306243927,-400.0,0.00011532,2]
[361148447,1747306243936,-455.59,0.00011532,2]
[361148448,1747306243945,-447.93235392,0.00011532,2]
[361148449,1747306243955,-400.0,0.00011532,2]
[361148450,1747306243964,-337.55169569,0.00011532,2]
[361148451,1747306243973,-400.0,0.00011532,2]
[361148452,1747306243982,-498.52,0.00011532,2]
[361148453,1747306243991,-400.0,0.00011532,2]
[361148454,1747306244000,-400.0,0.00011532,2]
[361148455,1747306244010,-400.0,0.00011532,2]
[361148456,1747306244020,-492.7,0.00011532,2]
[361148457,1747306244031,-499.05277757,0.00011532,2]
[361148458,1747306244041,-400.0,0.00011532,2]
[361148459,1747306244050,-400.0,0.00011532,2]
[361148460,1747306244059,-400.0,0.00011532,2]
[361148461,1747306244069,-400.0,0.00011532,2]
[361148462,1747306244078,-400.0,0.00011532,2]
[361148463,1747306244088,-400.0,0.00011532,2]
[361148464,1747306244098,-400.0,0.00011532,2]
[361148465,1747306244108,-675.23,0.00011532,2]
[361148466,1747306244117,-400.0,0.00011532,2]
[361148467,1747306244127,-400.0,0.00011532,2]
[361148468,1747306244136,-400.0,0.00011532,2]
[361148469,1747306244146,-471.69,0.00011532,2]
[361148470,1747306244156,-400.0,0.00011532,2]
[361148471,1747306244165,-586.43,0.00011532,2]
[361148472,1747306244175,-508.27,0.00011532,2]
[361148473,1747306244185,-400.0,0.00011532,2]
[361148474,1747306244194,-226.97078221,0.00011532,2]
[361148475,1747306244204,-413.49249992,0.00011532,2]
[361148476,1747306244214,-400.0,0.00011532,2]
[361148477,1747306244224,-400.0,0.00011532,2]
[361148478,1747306244233,-461.01,0.00011532,2]
[361148479,1747306244243,-400.0,0.00011532,2]
[361148480,1747306244252,-400.0,0.00011532,2]
[361148481,1747306244262,-400.0,0.00011532,2]
[361148482,1747306244271,-518.38,0.00011532,2]
[361148483,1747306244283,-400.0,0.00011532,2]
[361148484,1747306244292,-802.67,0.00011532,2]
[361148485,1747306244302,-548.77,0.00011532,2]
[361148486,1747306244311,-400.0,0.00011532,2]
[361148487,1747306244320,-445.77780287,0.00011532,2]
[361148488,1747306244339,-72.95219713,0.00011532,2]
[361148489,1747306244348,-400.0,0.00011532,2]
[361148490,1747306244357,-187.04780287,0.00011532,2]
[361148491,1747306244380,-212.95219713,0.00011532,2]
[361148492,1747306244390,-412.05,0.00011532,2]
[361148493,1747306244399,-400.0,0.00011532,2]
[361148494,1747306244409,-400.0,0.00011532,2]
[361148495,1747306244419,-400.0,0.00011532,2]
[361148496,1747306244429,-428.56,0.00011532,2]
[361148497,1747306244439,-400.0,0.00011532,2]
[361148498,1747306244448,-406.17652967,0.00011532,2]
[361148499,1747306244460,-400.0,0.00011532,2]
[361148500,1747306244470,-400.0,0.00011532,2]
[361148501,1747306244479,-445.2,0.00011532,2]
[361148502,1747306244489,-412.05,0.00011532,2]
[361148503,1747306244499,-107.0612732,0.00011532,2]
[361148504,1747306244888,-292.9387268,0.00011532,2]
[361148505,1747306244898,-166.3144697,0.00011532,2]
[361148506,1747306244974,-233.6855303,0.00011532,2]
[361148507,1747306244983,-545.98,0.00011532,2]
[361148508,1747306244992,-407.60570297,0.00011532,2]
[361148509,1747306245002,-353.13411421,0.00011532,2]
[361148510,1747306245014,-46.86588579,0.00011532,2]
[361148511,1747306245023,-400.0,0.00011532,2]
[361148512,1747306245034,-400.0,0.00011532,2]
[361148513,1747306245043,-400.0,0.00011532,2]
[361148514,1747306245053,-400.0,0.00011532,2]
[361148515,1747306245063,-439.8,0.00011532,2]
[361148516,1747306245073,-400.0,0.00011532,2]
[361148517,1747306245082,-400.0,0.00011532,2]
[361148518,1747306245091,-748.11,0.00011532,2]
[361148519,1747306245101,-400.0,0.00011532,2]
[361148520,1747306245110,-981.24,0.00011532,2]
[361148521,1747306245119,-400.0,0.00011532,2]
[361148522,1747306245129,-400.0,0.00011532,2]
[361148523,1747306245138,-400.0,0.00011532,2]
[361148524,1747306245148,-400.0,0.00011532,2]
[361148525,1747306245158,-400.0,0.00011532,2]
[361148526,1747306245167,-400.0,0.00011532,2]
[361148527,1747306245176,-631.49,0.00011532,2]
[361148528,1747306245185,-400.0,0.00011532,2]
[361148529,1747306245195,-400.0,0.00011532,2]
[361148530,1747306245204,-1416.68,0.00011532,2]
[361148531,1747306245213,-400.0,0.00011532,2]
[361148532,1747306245222,-400.0,0.00011532,2]
[361148533,1747306245232,-538.91,0.00011532,2]
[361148534,1747306245241,-400.0,0.00011532,2]
[361148535,1747306245250,-495.57,0.00011532,2]
[361148536,1747306245261,-400.0,0.00011532,2]
[361148537,1747306245271,-394.07610771,0.00011532,2]
[361148538,1747306245283,-400.0,0.00011532,2]
[361148539,1747306245292,-400.0,0.00011532,2]
[361148540,1747306245301,-400.0,0.00011532,2]
[361148541,1747306245311,-400.0,0.00011532,2]
[361148542,1747306245321,-400.0,0.00011532,2]
[361148543,1747306245331,-629.94,0.00011532,2]
[361148544,1747306245340,-400.0,0.00011532,2]
[361148545,1747306245350,-419.67,0.00011532,2]
[361148546,1747306245361,-400.0,0.00011532,2]
[361148547,1747306245370,-438.33147377,0.00011532,2]
[361148548,1747306245379,-500.0,0.00011532,2]
[361148549,1747306245389,-400.0,0.00011532,2]
[361148550,1747306245398,-404.09881316,0.00011532,2]
[361148551,1747306245408,-400.0,0.00011532,2]
[361148552,1747306245417,-400.0,0.00011532,2]
[361148553,1747306245427,-400.0,0.00011532,2]
[361148554,1747306245436,-293.00985231,0.00011532,2]
[361148555,1747306245445,-704.01,0.00011532,2]
[361148556,1747306245457,-400.0,0.00011532,2]
[361148557,1747306245467,-400.0,0.00011532,2]
[361148558,1747306245477,-478.52,0.00011532,2]
[361148559,1747306245487,-400.0,0.00011532,2]
[361148560,1747306245497,-400.0,0.00011532,2]
[361148561,1747306245507,-864.37,0.00011532,2]
[361148562,1747306245516,-400.0,0.00011532,2]
[361148563,1747306245526,-400.0,0.00011532,2]
[361148564,1747306245540,-904.49,0.00011532,2]
[361148565,1747306245549,-400.0,0.00011532,2]
[361148566,1747306245559,-441.86,0.00011532,2]
[361148567,1747306245568,-408.44874986,0.00011532,2]
[361148568,1747306245578,-400.0,0.00011532,2]
[361148569,1747306245588,-400.0,0.00011532,2]
[361148570,1747306245598,-400.0,0.00011532,2]
[361148571,1747306245608,-476.38,0.00011532,2]
[361148572,1747306245617,-400.0,0.00011532,2]
[361148573,1747306245627,-400.0,0.00011532,2]
[361148574,1747306245637,-400.0,0.00011532,2]
[361148575,1747306245647,-400.0,0.00011532,2]
[361148576,1747306245656,-478.85479595,0.00011532,2]
[361148577,1747306245667,-400.0,0.00011532,2]
[361148578,1747306245676,-400.0,0.00011532,2]
[361148579,1747306245686,-174.03060886,0.00011532,2]
[361148580,1747306245696,-400.0,0.00011532,2]
[361148581,1747306245705,-686.55,0.00011532,2]
[361148582,1747306245714,-547.73,0.00011532,2]
[361148583,1747306245722,-450.31,0.00011532,2]
[361148584,1747306245731,-477.02,0.00011532,2]
[361148585,1747306245739,-418.06,0.00011532,2]
[361148586,1747306245748,-400.0,0.00011532,2]
[361148587,1747306245757,-400.0,0.00011532,2]
[361148588,1747306245766,-400.0,0.00011532,2]
[361148589,1747306245774,-431.6,0.00011532,2]
[361148590,1747306245785,-400.0,0.00011532,2]
[361148591,1747306245794,-454.0,0.00011532,2]
[361148592,1747306245805,-400.0,0.00011532,2]
[361148593,1747306245814,-400.0,0.00011532,2]
[361148594,1747306245823,-400.0,0.00011532,2]
[361148595,1747306245832,-728.32,0.00011532,2]
[361148596,1747306245841,-290.96719481,0.00011532,2]
[361148597,1747306245850,-482.48,0.00011532,2]
[361148598,1747306245860,-400.0,0.00011532,2]
[361148599,1747306245869,-400.0,0.00011532,2]
[361148600,1747306245879,-400.0,0.00011532,2]
[361148601,1747306245888,-431.59,0.00011532,2]
[361148602,1747306245898,-400.0,0.00011532,2]
[361148603,1747306245909,-949.06,0.00011532,2]
[361148604,1747306245919,-400.0,0.00011532,2]
[361148605,1747306245928,-1079.93,0.00011532,2]
[361148606,1747306245936,-664.67,0.00011532,2]
[361148607,1747306245946,-400.0,0.00011532,2]
[361148608,1747306245957,-400.0,0.00011532,2]
[361148609,1747306245967,-1025.5,0.00011532,2]
[361148610,1747306245976,-400.0,0.00011532,2]
[361148611,1747306245986,-575.88,0.00011532,2]
[361148612,1747306245995,-668.18,0.00011532,2]
[361148613,1747306246005,-409.45,0.00011532,2]
[361148614,1747306246015,-656.58,0.00011532,2]
[361148615,1747306246024,-470.55,0.00011532,2]
[361148616,1747306246035,-540.14,0.00011532,2]
[361148617,1747306246045,-400.0,0.00011532,2]
[361148618,1747306246054,-40332.11,0.00011532,2]
[361148619,1747306246064,-400.0,0.00011532,2]
[361148620,1747306246074,-400.0,0.00011532,2]
[361148621,1747306246083,-400.0,0.00011532,2]
[361148622,1747306246093,-641.81,0.00011532,2]
[361148623,1747306246102,-400.0,0.00011532,2]
[361148624,1747306246111,-923.49,0.00011532,2]
[361148625,1747306246121,-3842.68,0.00011532,2]
[361148626,1747306246130,-400.0,0.00011532,2]
[361148627,1747306246139,-1524.27,0.00011532,2]
[361148628,1747306246149,-5754.29,0.00011532,2]
[361148629,1747306246158,-1112.52,0.00011532,2]
[361148630,1747306246168,-538.03,0.00011532,2]
[361148631,1747306246178,-400.0,0.00011532,2]
[361148632,1747306246187,-400.0,0.00011532,2]
[361148633,1747306246196,-483.98,0.00011532,2]
[361148634,1747306246205,-400.0,0.00011532,2]
[361148635,1747306246215,-903.37,0.00011532,2]
[361148636,1747306246225,-2944.18,0.00011532,2]
[361148637,1747306246234,-400.0,0.00011532,2]
[361148638,1747306246244,-1283.13,0.00011532,2]
[361148639,1747306246253,-400.0,0.00011532,2]
[361148640,1747306246264,-554.97,0.00011532,2]
[361148641,1747306246274,-1198.89,0.00011532,2]
[361148642,1747306246284,-441.51,0.00011532,2]
[361148643,1747306246294,-400.0,0.00011532,2]
[361148644,1747306246303,-889.16,0.00011532,2]
[361148645,1747306246313,-400.0,0.00011532,2]
[361148646,1747306246323,-781.4,0.00011532,2]
[361148647,1747306246332,-400.0,0.00011532,2]
[361148648,1747306246341,-1019.2,0.00011532,2]
[361148649,1747306246350,-400.0,0.00011532,2]
[361148650,1747306246360,-600.54,0.00011532,2]
[361148651,1747306246369,-183.14651778,0.00011532,2]
[361148652,1747306246383,-216.85348222,0.00011532,2]
[361148653,1747306246393,-329.14651778,0.00011532,2]
[361148654,1747306246437,-235.13348222,0.00011532,2]
[361148655,1747306246448,-1406.50652297,0.00011532,2]
[361148684,1747306247012,-511.37620639,0.00011532,2]
[361148685,1747306247024,-364.51749923,0.00011532,2]
[361148686,1747306247035,-5053.61977141,0.00011532,2]
[361148687,1747306247044,-1054.67,0.00011532,2]
[361148688,1747306247054,-935.67,0.00011532,2]
[361148689,1747306247063,-400.0,0.00011532,2]
[361148690,1747306247073,-400.0,0.00011532,2]
[361148691,1747306247082,-1595.12,0.00011532,2]
[361148692,1747306247092,-828.85,0.00011532,2]
[361148693,1747306247102,-433.69,0.00011532,2]
[361148694,1747306247111,-400.0,0.00011532,2]
[361148695,1747306247121,-400.0,0.00011532,2]
[361148696,1747306247131,-3925.47,0.00011532,2]
[361148697,1747306247141,-596.09,0.00011532,2]
[361148698,1747306247151,-522.37,0.00011532,2]
[361148699,1747306247160,-612.0,0.00011532,2]
[361148700,1747306247170,-2085.61,0.00011532,2]
[361148701,1747306247179,-3780.76,0.00011532,2]
[361148702,1747306247189,-1000.0,0.00011532,2]
[361148703,1747306247198,-1157.68,0.00011532,2]
[361148704,1747306247207,-1475.66,0.00011532,2]
[361148705,1747306247217,-400.0,0.00011532,2]
[361148706,1747306247227,-748.88,0.00011532,2]
[361148707,1747306247236,-400.0,0.00011532,2]
[361148708,1747306247245,-2497.16,0.00011532,2]
[361148709,1747306247256,-400.02,0.00011532,2]
[361148710,1747306247267,-400.0,0.00011532,2]
[361148711,1747306247277,-400.0,0.00011532,2]
[361148712,1747306247288,-1841.41,0.00011532,2]
[361148713,1747306247298,-2100.81,0.00011532,2]
[361148714,1747306247308,-478.09,0.00011532,2]
[361148715,1747306247318,-637.61,0.00011532,2]
[361148716,1747306247327,-400.0,0.00011532,2]
[361148717,1747306247337,-540.42,0.00011532,2]
[361148718,1747306247347,-400.0,0.00011532,2]
[361148719,1747306247356,-400.0,0.00011532,2]
[361148720,1747306247366,-1574.26,0.00011532,2]
[361148721,1747306247376,-2148.61,0.00011532,2]
[361148722,1747306247386,-3857.69,0.00011532,2]
[361148723,1747306247396,-400.0,0.00011532,2]
[361148724,1747306247405,-500.0,0.00011553,2]
[361148725,1747306247415,-6972.2135099,0.00011554,2]
[361148726,1747306247425,-1304.0,0.00011565,2]
[361148727,1747306247435,-799.0,0.00011565,2]
[361148728,1747306247445,-154.0,0.00011565,2]
[361148729,1747306247458,-4035.0,0.00011565,2]
[361148730,1747306247468,-5941.0,0.00011565,2]
[361148731,1747306247478,-500.0,0.00011573,2]
[361148732,1747306247489,-301.56567346,0.00011573,2]
[361148733,1747306247599,-198.43432654,0.00011573,2]
[361148734,1747306247610,-500.0,0.00011573,2]
[361148735,1747306247620,-503.34073769,0.00011573,2]
[361148736,1747306247630,-500.0,0.00011573,2]
[361148737,1747306247640,-2.98493577,0.00011573,2]
[361148738,1747306247652,-318.8803487,0.00011573,2]
[361148739,1747306247664,-178.39486182,0.00011573,2]
[361148740,1747306247674,-171.66453818,0.00011573,2]
[361148741,1747306247692,-15.21474168,0.00011573,2]
[361148742,1747306247702,-676.02254385,0.0001159,2]
[361148743,1747306247711,-500.0,0.00011632,2]
[361148744,1747306247721,-500.0,0.00011635,2]
[361148745,1747306247731,-500.0,0.00011635,2]
[361148746,1747306247741,-500.0,0.00011662,2]
[361148747,1747306247751,-500.0,0.00011662,2]
[361148748,1747306247761,-300.0,0.00011666,2]
[361148749,1747306247770,-1176.6,0.00011666,2]
[361148750,1747306247780,-6972.2135099,0.00011676,2]
[361148751,1747306247791,-500.0,0.0001169,2]
[361148752,1747306247801,-500.0,0.0001169,2]
[361148753,1747306247811,-296.67,0.000117,2]
[361148754,1747306247820,-500.0,0.00011717,2]
[361148755,1747306247830,-500.0,0.00011717,2]
[361148756,1747306247840,-500.0,0.00011745,2]
[361148757,1747306247849,-500.0,0.00011745,2]
[361148758,1747306247859,-864.16826048,0.00011747,2]
[361148759,1747306247868,-200.0,0.00011749,2]
[361148760,1747306247877,-200.0,0.00011749,2]
[361148761,1747306247887,-170.0,0.00011766,2]
[361148762,1747306247897,-340.0,0.00011766,2]
[361148763,1747306247906,-500.0,0.00011772,2]
[361148764,1747306247915,-500.0,0.00011772,2]
[361148765,1747306247925,-4157.569,0.00011778,2]
[361148766,1747306247934,-176.448,0.00011778,2]
[361148767,1747306247943,-3904.12012769,0.00011797,2]
[361148768,1747306329099,197.37,0.00021945,30]
[361148769,1747306384843,872.57,8.949e-05,2]
[361149409,1747306946549,-200.30575379,9.996e-05,2]
[361149410,1747306984241,170.92,7.988e-05,2]
[361149411,1747307008118,-284.18374291,9.984e-05,2]
[361149412,1747307010861,-38.82625709,9.984e-05,2]
[361149413,1747307010883,-211.98785464,9.996e-05,2]
[361149414,1747307012659,-34.43639157,9.996e-05,2]
[361149415,1747307012681,-163.71,0.00010008,2]
[361149416,1747307012704,-23.29280957,0.00010283,2]
[361149417,1747307014806,-156.0915832,0.00010283,2]
[361149418,1747307143739,-183.05979259,0.00010009,2]
[361149439,1747307412234,172.69,0.00021945,30]
[361149454,1747307432718,-1000.0,9.98e-05,2]
[361149456,1747307432728,-16.94020741,0.00010009,2]
[361149458,1747307432738,-250.0,0.00010019,2]
[361149460,1747307432747,-166.47,0.00010298,2]
[361149462,1747307432756,-246.61,0.00010629,2]
[361149464,1747307432766,-246.61,0.00010632,2]
[361149466,1747307432775,-246.61,0.00010635,2]
[361149468,1747307432784,-246.61,0.00010638,2]
[361149470,1747307432794,-246.61,0.0001064,2]
[361149472,1747307432804,-246.61,0.00010643,2]
[361149474,1747307432814,-246.61,0.00010646,2]
[361149476,1747307432823,-200.0,0.00010646,2]
[361149478,1747307432832,-246.61,0.00010649,2]
[361149480,1747307432841,-246.61,0.00010652,2]
[361149482,1747307432850,-246.61,0.00010654,2]
[361149484,1747307432860,-246.61,0.00010657,2]
[361149486,1747307432868,-246.61,0.0001066,2]
[361149488,1747307432877,-246.61,0.00010663,2]
[361149490,1747307432886,-246.61,0.00010666,2]
[361149492,1747307432896,-246.61,0.00010668,2]
[361149494,1747307432905,-246.61,0.00010671,2]
[361149496,1747307432914,-246.61,0.00010674,2]
[361149497,1747307432923,-246.61,0.00010677,2]
[361149499,1747307432932,-246.61,0.0001068,2]
[361149502,1747307432941,-300.0,0.00010681,2]
[361149503,1747307432951,-150.0,0.00010682,2]
[361149506,1747307432960,-300.0,0.00010682,2]
[361149507,1747307432969,-1200.0,0.00010682,2]
[361149509,1747307432979,-246.61,0.00010682,2]
[361149511,1747307432988,-150.0,0.00010752,2]
[361149513,1747307432997,-1299.17,0.00010816,2]
[361149515,1747307433007,-162.69,0.00010855,2]
[361149517,1747307433016,-410.69086559,0.00010959,2]
[361149520,1747307433028,-685.85913441,0.00010959,2]
[361149521,1747307433037,-237.33,0.000111,2]
[361149523,1747307433047,-39.69697079,0.000111,2]
[361149528,1747307433081,-197.63302921,0.000111,2]
[361149530,1747307433091,-166.47,0.00011148,2]
[361149532,1747307433100,-237.33,0.000112,2]
[361149534,1747307433110,-207.4,0.00011206,2]
[361149536,1747307433120,-668.65185757,0.00011206,2]
[361149538,1747307433130,-872.57,0.00011212,2]
[361149540,1747307433140,-1000.0,0.00011227,2]
[361149542,1747307433149,-323.01,0.00011232,2]
[361149544,1747307433159,-434.80166447,0.00011233,2]
[361150032,1747307438181,-1555.48249381,0.00011233,2]